fUSD/lending_fUSD_20240528
["ID","MTS","AMOUNT","RATE_DAILY","PERIOD"]
[328135230,1716924661488,3467.60153267,0.0001112,2]
[328135231,1716924661511,4000.0,0.0001112,2]
[328135232,1716924661535,4000.0,0.0001112,2]
[328135233,1716924661558,1014.9408268,0.0001112,2]
[328135234,1716924799837,-155.0,0.0001298,2]
[328135235,1716924799857,-980.0,0.00012981,2]
[328135237,1716924996172,2985.0591732,0.0001,2]
[328135238,1716924996193,4000.0,0.0001,2]
[328135239,1716924996214,4000.0,0.0001,2]
[328135240,1716924996236,1841.33389205,0.0001,2]
[328135264,1716925831629,-524.14038835,0.00012166,2]
[328135265,1716925831639,-201.19951623,0.00012166,2]
[328135266,1716925831649,-2138.00765007,0.00012167,2]
[328135267,1716925831666,-450.0,0.00012167,2]
[328135268,1716925831677,-1050.0,0.00012167,2]
[328135269,1716925831761,-361.99234993,0.00012167,2]
[328135270,1716925831771,-155.0,0.00012228,2]
[328135271,1716925831781,-155.0,0.00012229,2]
[328135272,1716925831793,-306.53940686,0.0001223,2]
[328135273,1716925831807,-496.42246787,0.00012238,2]
[328135274,1716925831817,-204.87,0.00012621,2]
[328135276,1716925831827,-168.22266602,0.000129,2]
[328135277,1716925831837,-7500.0,0.000129,2]
[328135278,1716925831847,-1668.37235154,0.000129,2]
[328135279,1716925831856,-8899.57886375,0.000129,2]
[328135280,1716925831865,-319.64986203,0.000129,2]
[328135281,1716925831875,-2060.16266328,0.000129,2]
[328135282,1716925831887,-270.27450906,0.00012981,2]
[328135283,1716925831897,-1143.95954077,0.00012984,2]
[328135284,1716925831909,-1396.94987046,0.00012987,2]
[328135285,1716925831919,-152.27,0.0001299,2]
[328135286,1716925831929,-152.27,0.0001299,2]
[328135287,1716925831939,-152.27,0.0001299,2]
[328135288,1716925831949,-4623.93086454,0.00012999,2]
[328135289,1716925831960,-379775.77192132,0.00013,2]
[328135290,1716925831991,-0.31134428,0.00013,2]
[328135291,1716925832002,-132987.75905548,0.00013,2]
[328135292,1716925832018,-13873.86,0.00013,2]
[328135293,1716925832029,-791.24822385,0.00013,2]
[328135294,1716925832041,-10698.90772383,0.00013,2]
[328135297,1716925837533,-1354.75597673,0.000129,2]
[328135298,1716925837543,-165.36874236,0.000129,2]
[328135299,1716925837553,-4850.6446732,0.000129,2]
[328135300,1716925837765,-2649.3553268,0.000129,2]
[328135301,1716925837774,-377.06024059,0.00013,2]
[328135302,1716925837786,-296.71999953,0.00013,2]
[328135303,1716925837799,-1394.0299705,0.00013,2]
[328135316,1716925840135,-516.49219709,0.00013,2]
[328135317,1716925840148,-810.22676151,0.00013,2]
[328135318,1716925840197,-7660.93960085,0.00013,2]
[328135319,1716925840262,-741.079999,0.00013,2]
[328135320,1716925840274,-1642.8995,0.00013,2]
[328135321,1716925840384,-25245.34461472,0.00013,2]
[328135322,1716925840396,-2376.93177082,0.00013,2]
[328135323,1716925840408,-8404.1631,0.00013,2]
[328135324,1716925840420,-6963.97097075,0.00013,2]
[328135325,1716925841085,-500.35141074,0.00013,2]
[328135382,1716925842687,-1030647.01087623,0.00013,2]
[328135390,1716925842752,-19613.23132792,0.00013,2]
[328135392,1716925842764,-3272.74963024,0.00013,2]
[328135393,1716925842818,-3475.05,0.00013,2]
[328135394,1716925842887,-1904.71911053,0.00013,2]
[328135405,1716925846196,299.15348563,0.0001,2]
[328135410,1716925846985,-271.80534509,0.00012998,2]
[328135411,1716925846994,-524.07644418,0.00012999,2]
[328135412,1716925847004,-155.90342501,0.00012999,2]
[328135413,1716925847013,-86523.32424467,0.00013,2]
[328135498,1716925856106,500.0,0.000128,4]
[328135499,1716925858209,1000.0,0.000129,4]
[328135502,1716926731930,194.62,0.00011483,2]
[328135506,1716926835524,400.0,0.000128,4]
[328135508,1716926837617,800.0,0.000129,4]
[328135516,1716927027513,-3000000.0,0.00033508,60]
[328135535,1716927031683,-2003.2277311,0.00011856,2]
[328135537,1716927031692,-314.36267157,0.00012346,2]
[328135540,1716927031702,-10952.16001412,0.000124,2]
[328135542,1716927031711,-2500.0,0.000128,2]
[328135544,1716927031721,-1427.30474,0.0001287,2]
[328135545,1716927031731,-1008.02014055,0.00012897,2]
[328135546,1716927031740,-4226.58860623,0.00012898,2]
[328135548,1716927031750,-845.75725708,0.00012899,2]
[328135549,1716927031760,-1000.0,0.000129,2]
[328135550,1716927031769,-7500.0,0.000129,2]
[328135551,1716927031778,-8009.62097742,0.000129,2]
[328135552,1716927031787,-1501.53511635,0.000129,2]
[328135553,1716927031795,-1878.66005771,0.000129,2]
[328135554,1716927031804,-319.42593073,0.000129,2]
[328135555,1716927031813,-2500.0,0.000129,2]
[328135556,1716927031822,-158.1,0.00012954,2]
[328135557,1716927031831,-291.66,0.00012974,2]
[328135558,1716927031840,-152.28,0.0001299,2]
[328135559,1716927031849,-536.52210812,0.00012996,2]
[328135560,1716927031859,-201.19951623,0.00012996,2]
[328135561,1716927031867,-428.81754475,0.00012997,2]
[328135562,1716927031876,-7524.9148836,0.00012997,2]
[328135563,1716927031886,-13474.39866184,0.00012997,2]
[328135564,1716927031907,-1525.60133816,0.00012997,2]
[328135565,1716927031916,-156.34895342,0.00012998,2]
[328135566,1716927031925,-29960.29817806,0.00013,2]
[328135567,1716927031936,-5200.0,0.00013,2]
[328135568,1716927032080,-3000000.0,0.00033508,60]
[328135569,1716927032495,-300.0,0.00013,2]
[328135570,1716927032554,-2772.08142611,0.00013,2]
[328135571,1716927032566,-298185.0672661,0.00013,2]
[328135572,1716927032575,-75252.84277181,0.00013,2]
[328135573,1716927032763,-344.52916244,0.00013,2]
[328135574,1716927032776,-632.46840949,0.00013,2]
[328135584,1716927037736,-1299.42409849,0.00011855,2]
[328135585,1716927037747,-1945.3768546,0.00011855,2]
[328135586,1716927037759,-17571.98957374,0.00011855,2]
[328135587,1716927037769,-17728.88748436,0.00013,2]
[328135588,1716927037793,-2061.84358509,0.00013,2]
[328135589,1716927037852,-810.16228092,0.00013,2]
[328135590,1716927037914,-27042.4,0.00013,2]
[328135591,1716927037974,-397.31375393,0.00013,2]
[328135592,1716927037985,-2815.26607122,0.00013,2]
[328135593,1716927037996,-22520.28565756,0.00013,2]
[328135594,1716927038008,-928.12833266,0.00013,2]
[328135595,1716927038019,-716.54185666,0.00013,2]
[328135596,1716927038030,-697.76274,0.00013,2]
[328135598,1716927038042,-504.34474645,0.00013,2]
[328135606,1716927040534,-5348.84120625,0.00013,2]
[328135607,1716927040547,-18806.4295995,0.00013,2]
[328135611,1716927042815,-2321.94741875,0.00012999,2]
[328135612,1716927042825,-2485.27020259,0.00013,2]
[328135613,1716927042837,-5591.99091233,0.00013,2]
[328135614,1716927042848,-469.09104546,0.00013,2]
[328135615,1716927042859,-691.5972904,0.00013,2]
[328135616,1716927042874,-4265.59484299,0.00013,2]
[328135617,1716927042932,-385.43643195,0.00013,2]
[328135618,1716927043043,-679.62076156,0.00013,2]
[328135628,1716927045930,-1201.10420829,0.00012998,2]
[328135629,1716927045939,-1536.98794724,0.00013,2]
[328135630,1716927045951,-5744.58895555,0.00013,2]
[328135631,1716927045962,-6952.43030161,0.00013,2]
[328135632,1716927045973,-767.11836077,0.00013,2]
[328135633,1716927045984,-58869.00505779,0.00013,2]
[328135634,1716927045995,-721.04303764,0.00013,2]
[328135635,1716927046006,-1924.99525001,0.00013,2]
[328135636,1716927046019,-1219.30069174,0.00013,2]
[328135644,1716927114900,-2111541.31242911,0.00033508,60]
[328135645,1716927114925,-2432.71435982,0.00033508,120]
[328135646,1716927114950,-17169.23463877,0.00033508,120]
[328135647,1716927114976,-791.19277532,0.00033508,120]
[328135648,1716927115000,-3796.9423037,0.00033508,30]
[328135649,1716927115024,-442.50141958,0.00033508,120]
[328135650,1716927115047,-50542.07782648,0.00033508,120]
[328135651,1716927115071,-125848.88473089,0.00033508,30]
[328135652,1716927115294,-14029.53665715,0.00033508,30]
[328135653,1716927115320,-4954.16305833,0.00033508,30]
[328135654,1716927115346,-10291.80021955,0.00033508,30]
[328135655,1716927115375,-1659639.34847571,0.00033508,120]
[328135656,1716927115398,-1000.0,0.00033508,31]
[328135657,1716927115421,-7999.999999,0.00033508,120]
[328135658,1716927115445,-1000.0,0.00033508,30]
[328135659,1716927115470,-1000.0,0.00033508,60]
[328135660,1716927115493,-1000.0,0.00033508,60]
[328135661,1716927115516,-1000.0,0.00033508,30]
[328135662,1716927115539,-1000.0,0.00033508,60]
[328135663,1716927115563,-1000.0,0.00033508,60]
[328135664,1716927115586,-1000.0,0.00033508,60]
[328135665,1716927115609,-1000.0,0.00033508,30]
[328135666,1716927115632,-1000.0,0.00033508,30]
[328135667,1716927115655,-1000.0,0.00033508,30]
[328135668,1716927115678,-1000.0,0.00033508,30]
[328135669,1716927115701,-1000.0,0.00033508,30]
[328135670,1716927115727,-1000.0,0.00033508,30]
[328135671,1716927115751,-1000.0,0.00033508,30]
[328135672,1716927115774,-1000.0,0.00033508,30]
[328135673,1716927115797,-1000.0,0.00033508,30]
[328135674,1716927115820,-1000.0,0.00033508,30]
[328135675,1716927115842,-1000.0,0.00033508,30]
[328135676,1716927115865,-1000.0,0.00033508,120]
[328135677,1716927115888,-1000.0,0.00033508,120]
[328135678,1716927115910,-1000.0,0.00033508,30]
[328135679,1716927115933,-1000.0,0.00033508,30]
[328135680,1716927115957,-1000.0,0.00033508,30]
[328135681,1716927115980,-1000.0,0.00033508,120]
[328135682,1716927116004,-1000.0,0.00033508,30]
[328135683,1716927116028,-1000.0,0.00033508,60]
[328135684,1716927116052,-1000.0,0.00033508,30]
[328135685,1716927116075,-1000.0,0.00033508,60]
[328135686,1716927116098,-1000.0,0.00033508,60]
[328135687,1716927116121,-1000.0,0.00033508,30]
[328135688,1716927116144,-1000.0,0.00033508,30]
[328135689,1716927116167,-1050.48,0.00033508,60]
[328135690,1716927116190,-207.15529959,0.00033508,120]
[328135691,1716927116229,-2000.66612404,0.00033508,120]
[328135692,1716927116255,-1187.52831294,0.00033508,120]
[328135693,1716927116278,-571.48096796,0.00033508,30]
[328135694,1716927116304,-98287.1479093,0.00033508,30]
[328135695,1716927116328,-8578.5646,0.00033508,30]
[328135696,1716927116353,-235.39663806,0.00033508,30]
[328135697,1716927116376,-151.12712543,0.00033508,120]
[328135698,1716927116399,-419.0486958,0.00033508,120]
[328135699,1716927116423,-1247.45513364,0.00033508,120]
[328135700,1716927116446,-262.96488425,0.00033508,120]
[328135701,1716927116472,-235.32837725,0.00033508,120]
[328135702,1716927116496,-186.5827029,0.00033508,120]
[328135703,1716927116520,-1213.99594966,0.00033508,120]
[328135704,1716927116543,-2000.0,0.00033508,30]
[328135705,1716927116565,-310.63843226,0.00033508,30]
[328135706,1716927116588,-985.6,0.00033508,30]
[328135707,1716927116612,-1413.56,0.00033508,30]
[328135708,1716927116636,-88911.9766903,0.00033508,30]
[328135709,1716927116660,-2000.0,0.00033508,30]
[328135710,1716927116683,-200.46047162,0.00033508,30]
[328135711,1716927116707,-308.54130483,0.00033508,120]
[328135712,1716927116730,-4153.0,0.00033508,120]
[328135713,1716927116753,-1000.0,0.00033508,120]
[328135714,1716927116777,-734.71828895,0.00033508,120]
[328135715,1716927116799,-8045.25955304,0.00033508,120]
[328135716,1716927116822,-30000.0,0.00033508,90]
[328135717,1716927116844,-2677.74155848,0.00033508,30]
[328135718,1716927116867,-1036.0,0.00033508,30]
[328135719,1716927116890,-1036.0,0.00033508,30]
[328135720,1716927116912,-1036.0,0.00033508,30]
[328135721,1716927116934,-1036.0,0.00033508,30]
[328135722,1716927116958,-1036.0,0.00033508,30]
[328135723,1716927116986,-1036.0,0.00033508,30]
[328135724,1716927117010,-1036.0,0.00033508,30]
[328135725,1716927117035,-1036.0,0.00033508,30]
[328135726,1716927117059,-1036.0,0.00033508,30]
[328135727,1716927117083,-1036.0,0.00033508,30]
[328135728,1716927117106,-1036.0,0.00033508,30]
[328135729,1716927117129,-1036.0,0.00033508,30]
[328135730,1716927117151,-1036.0,0.00033508,30]
[328135731,1716927117175,-1036.0,0.00033508,30]
[328135732,1716927117198,-1036.0,0.00033508,30]
[328135733,1716927117227,-1036.0,0.00033508,30]
[328135734,1716927117251,-1036.0,0.00033508,30]
[328135735,1716927117274,-1036.0,0.00033508,30]
[328135736,1716927117297,-1036.0,0.00033508,30]
[328135737,1716927117320,-1036.0,0.00033508,30]
[328135738,1716927117341,-1036.0,0.00033508,30]
[328135739,1716927117363,-1036.0,0.00033508,30]
[328135740,1716927117386,-1036.0,0.00033508,30]
[328135741,1716927117413,-1036.0,0.00033508,30]
[328135742,1716927117436,-1036.0,0.00033508,30]
[328135743,1716927117463,-1036.0,0.00033508,30]
[328135744,1716927117486,-1036.0,0.00033508,30]
[328135745,1716927117509,-1036.0,0.00033508,30]
[328135746,1716927117532,-1036.0,0.00033508,30]
[328135747,1716927117555,-1113.48736338,0.00033508,30]
[328135748,1716927117732,-12619.26981295,0.00033508,30]
[328135749,1716927117757,-1000.0,0.00033508,60]
[328135750,1716927117778,-1000.0,0.00033508,60]
[328135751,1716927117800,-1000.0,0.00033508,60]
[328135752,1716927117822,-1000.0,0.00033508,60]
[328135753,1716927117844,-1000.0,0.00033508,60]
[328135754,1716927117866,-1000.0,0.00033508,60]
[328135755,1716927117887,-1000.0,0.00033508,60]
[328135756,1716927117910,-1000.0,0.00033508,60]
[328135757,1716927117934,-1014.97679083,0.00033508,60]
[328135758,1716927227155,200.46,0.00010995,2]
[328135759,1716927237044,300.0,0.000129,4]
[328135760,1716927289048,151.0,0.00024827,120]
[328135761,1716927484070,359.0,0.00011443,2]
[328135762,1716927487614,790.70683797,0.000115,2]
[328135763,1716927498687,314.72578435,0.000115,2]
[328135764,1716927498708,469.98765958,0.000115,2]
[328135765,1716927507572,252.7560391,0.000115,2]
[328135766,1716927510260,447.39331429,0.000115,2]
[328135767,1716927511324,2829.86298703,0.000115,2]
[328135768,1716927511359,4000.0,0.000115,2]
[328135769,1716927511387,4000.0,0.000115,2]
[328135770,1716927511413,939.4688939,0.000115,2]
[328135771,1716927562070,410.17369019,0.000115,2]
[328135772,1716927568108,299.23019146,0.000115,2]
[328135773,1716927578076,409.99056455,0.000115,2]
[328135774,1716927586626,299.0767798,0.000115,2]
[328135775,1716927592144,326.36039384,0.000115,2]
[328135776,1716927652335,337.47918463,0.000115,2]
[328135777,1716927701998,190.43,0.00010838,2]
[328135778,1716927765864,787.79030163,0.00010838,2]
[328135779,1716927765888,461.0,0.00010838,2]
[328135780,1716927765914,93578.60204164,0.00010838,2]
[328135781,1716927779866,1625.58,0.000115,2]
[328135782,1716927813812,20327.7376264,0.00010838,2]
[328135784,1716927984512,327.22308883,0.000115,2]
[328135786,1716928016706,2331.50342214,0.000115,2]
[328135792,1716928047036,700.0,0.000129,4]
[328135795,1716928092406,1625.58,0.000115,2]
[328135807,1716928231951,-956.0721124,0.00011501,2]
[328135808,1716928231963,-960.42655982,0.00011501,2]
[328135809,1716928231975,-1372.11099491,0.00011501,2]
[328135810,1716928231985,-466.23800503,0.00011757,2]
[328135811,1716928231995,-826.65982844,0.00012349,2]
[328135812,1716928232004,-250.0,0.00012363,2]
[328135813,1716928232014,-2886.45481105,0.00012375,2]
[328135814,1716928232025,-1150.65467205,0.00012375,2]
[328135815,1716928232037,-500.0,0.00012375,2]
[328135816,1716928232048,-3228.6305169,0.00012375,2]
[328135817,1716928232057,-4282.56969523,0.00012633,2]
[328135818,1716928232067,-155.0,0.00012633,2]
[328135819,1716928232076,-1791.88599377,0.00012633,2]
[328135820,1716928232085,-326.75309456,0.00012633,2]
[328135821,1716928232094,-113.57466218,0.00012633,2]
[328135822,1716928232229,-527.5139375,0.00012633,2]
[328135823,1716928232238,-219.04771027,0.00012633,2]
[328135824,1716928232249,-322.50806026,0.00012633,2]
[328135825,1716928232258,-507.57883072,0.00012633,2]
[328135826,1716928232270,-305.21116928,0.00012633,2]
[328135827,1716928232279,-230.29983072,0.00012634,2]
[328135828,1716928233510,-613.1193161,0.00012634,2]
[328135829,1716928233520,-1786.8806839,0.00012635,2]
[328135830,1716928233535,-22113.1193161,0.00012635,2]
[328135831,1716928233545,-1142.91715124,0.00012642,2]
[328135832,1716928233555,-380.70037141,0.00012654,2]
[328135834,1716928233565,-253.6735235,0.00012666,2]
[328135835,1716928233576,-499.99,0.00012667,2]
[328135836,1716928233585,-1500.0,0.00012674,2]
[328135837,1716928233595,-250.0,0.00012738,2]
[328135838,1716928233606,-817.68,0.00012749,2]
[328135839,1716928233615,-1000.0,0.00012792,2]
[328135840,1716928233625,-864.39016857,0.00012794,2]
[328135841,1716928233635,-498.93342674,0.00012794,2]
[328135842,1716928233644,-883.0724361,0.00012794,2]
[328135843,1716928233654,-326.03857462,0.00012794,2]
[328135844,1716928233664,-336.76448599,0.00012794,2]
[328135845,1716928233674,-787.96251508,0.00012795,2]
[328135846,1716928233684,-1189.42062,0.0001287,2]
[328135847,1716928233694,-1000.0,0.000129,2]
[328135848,1716928233703,-2477.01392486,0.000129,2]
[328135849,1716928233716,-1918.35558697,0.000129,2]
[328135850,1716928233731,-926.16988635,0.000129,2]
[328135851,1716928233747,-2067.94342438,0.000129,2]
[328135852,1716928233759,-3997.2538822,0.000129,2]
[328135854,1716928238031,-1391.18950319,0.000129,2]
[328135855,1716928238127,-444.11719502,0.000129,2]
[328135856,1716928238139,-6591.9449085,0.000129,2]
[328135857,1716928238150,-3161.27002708,0.000129,2]
[328135858,1716928238161,-3399.9532182,0.000129,2]
[328135859,1716928238173,-5115.04327528,0.000129,2]
[328135860,1716928238184,-7247.88125866,0.000129,2]
[328135861,1716928238195,-7154.86799684,0.000129,2]
[328135862,1716928238207,-9901.01985224,0.000129,2]
[328135863,1716928238218,-5085.22599903,0.000129,2]
[328135864,1716928238229,-7040.3643225,0.000129,2]
[328135865,1716928238241,-790.78038868,0.000129,2]
[328135866,1716928238252,-1729.55783652,0.000129,2]
[328135867,1716928238268,-318.54331447,0.000129,2]
[328135868,1716928238279,-529.82133345,0.000129,2]
[328135869,1716928238291,-774.91831638,0.000129,2]
[328135870,1716928238303,-1129.88152345,0.000129,2]
[328135871,1716928238314,-578.941023,0.000129,2]
[328135872,1716928238353,-3294.41610275,0.000129,2]
[328135873,1716928238363,-2147.7816,0.000129,2]
[328135874,1716928238372,-5731.08448592,0.000129,2]
[328135875,1716928238384,-1477.57439374,0.000129,2]
[328135876,1716928238394,-1351.38160476,0.000129,2]
[328135877,1716928238403,-1643.82755047,0.000129,2]
[328135878,1716928238413,-319.59036914,0.000129,2]
[328135879,1716928238424,-152.28,0.0001299,2]
[328135880,1716928238434,-155.0,0.00012998,2]
[328135881,1716928238444,-210.49319076,0.00012998,2]
[328135882,1716928238453,-372.66409471,0.00012999,2]
[328135883,1716928238462,-12049.27392217,0.00013,2]
[328135884,1716928238474,-1151.7587563,0.00013,2]
[328135885,1716928238486,-7229.20000001,0.00013,2]
[328135886,1716928238502,-500.0,0.00013,2]
[328135887,1716928238513,-17536.23838421,0.00013,2]
[328135888,1716928238526,-7706.84209174,0.00013,2]
[328135889,1716928238543,-16169.82675154,0.00013,2]
[328135890,1716928238554,-807.04598073,0.00013,2]
[328135891,1716928238567,-3062.67819403,0.00013,2]
[328135892,1716928238578,-4920.40179236,0.00013,2]
[328135893,1716928238589,-3726.19972867,0.00013,2]
[328135894,1716928238606,-775.44461026,0.00013,2]
[328135895,1716928238638,-999.05068868,0.00013,2]
[328135897,1716928238649,-584.41203766,0.00013,2]
[328135922,1716928240528,-2121.62379016,0.00013,2]
[328135923,1716928240617,-129387.91195927,0.00013,2]
[328135924,1716928240630,-2788.00917493,0.00013,2]
[328135925,1716928240771,-813.78799327,0.00013,2]
[328135926,1716928240783,-641.34967595,0.00013,2]
[328135927,1716928240794,-2026.52932766,0.00013,2]
[328135928,1716928240805,-857.69234347,0.00013,2]
[328135929,1716928240817,-8724.05439088,0.00013,2]
[328135930,1716928240829,-632.89257448,0.00013,2]
[328135931,1716928241410,-1532.83233641,0.00013,2]
[328135932,1716928241424,-366.976,0.00013,2]
[328135933,1716928241435,-1198.68,0.00013,2]
[328135949,1716928243238,-614.39992241,0.00013,2]
[328135950,1716928243250,-1640.91763236,0.00013,2]
[328135951,1716928243261,-975.40414729,0.00013,2]
[328135952,1716928243275,-1299.7799031,0.00013,2]
[328135953,1716928243290,-1078.79243425,0.00013,2]
[328135954,1716928243302,-1360.41986323,0.00013,2]
[328135955,1716928243313,-814.72327182,0.00013,2]
[328135956,1716928243324,-474.31241351,0.00013,2]
[328135957,1716928243343,-1133.20005046,0.00013,2]
[328135958,1716928243354,-688696.54069248,0.00013,2]
[328135959,1716928243364,-161.03410793,0.00013,2]
[328135960,1716928243373,-190.43,0.00013102,2]
[328135961,1716928243383,-1189.42062,0.0001339,2]
[328135962,1716928243392,-1903.42,0.00013699,2]
[328135963,1716928243551,-157.25,0.00013973,2]
[328135964,1716928243561,-155.13,0.00013973,2]
[328135965,1716928243571,-157.5,0.00013973,2]
[328135966,1716928243581,-153.96,0.00013973,2]
[328135967,1716928243590,-156.07,0.00013973,2]
[328135968,1716928243600,-1189.42062,0.0001402,2]
[328135969,1716928243612,-1000.0,0.00014391,2]
[328135970,1716928243622,-1189.42062,0.0001465,2]
[328135971,1716928243631,-165.36874236,0.000149,2]
[328135972,1716928243641,-1400.0,0.000149,5]
[328135973,1716928243651,-155.23820873,0.00014999,2]
[328135974,1716928243660,-37502.59100434,0.00015,2]
[328135975,1716928243670,-4217.45561659,0.00015,2]
[328135976,1716928243680,-325.28545213,0.00015,2]
[328135977,1716928243689,-2151.0,0.00015,2]
[328135978,1716928243699,-661.0,0.00015,2]
[328135979,1716928243708,-7208.6588796,0.00015011,2]
[328135980,1716928243718,-1351.38160469,0.00015011,2]
[328135981,1716928243727,-150.0,0.00015068,2]
[328135982,1716928243738,-1189.42063,0.0001527,2]
[328135983,1716928243748,-190.43,0.00015366,2]
[328135984,1716928243757,-1643.82755045,0.00015471,2]
[328135985,1716928243767,-817.68,0.00015489,2]
[328135986,1716928243778,-201.2,0.00015831,2]
[328135987,1716928243788,-1189.42062,0.0001589,2]
[328135988,1716928243797,-1000.0,0.0001599,2]
[328135989,1716928243807,-151.0,0.00016438,2]
[328135991,1716928243816,-7495.01,0.00016438,2]
[328135992,1716928243825,-150.0,0.00016438,2]
[328135993,1716928243835,-179.53,0.00016712,2]
[328135994,1716928243845,-7208.6588796,0.00017122,2]
[328135995,1716928243854,-1351.38160469,0.00017122,2]
[328135996,1716928243863,-2294.79725672,0.00017225,2]
[328135997,1716928243873,-1090.69263814,0.00017352,2]
[328135998,1716928243882,-1000.0,0.0001759,2]
[328135999,1716928243891,-190.43,0.0001763,2]
[328136000,1716928243900,-151.0,0.00017807,2]
[328136001,1716928243909,-155.19419986,0.00018,2]
[328136002,1716928243919,-804.69308319,0.00018,2]
[328136003,1716928243928,-1643.82755045,0.00018043,2]
[328136004,1716928243938,-817.68,0.00018229,2]
[328136005,1716928243947,-151.212,0.00018257,2]
[328136006,1716928243956,-150.157,0.00018257,2]
[328136007,1716928243965,-445.0,0.00018257,2]
[328136008,1716928243975,-2398.0,0.00018257,2]
[328136009,1716928243984,-150.0,0.00018257,2]
[328136010,1716928243993,-808.0,0.00018257,2]
[328136011,1716928244002,-164.0,0.00018257,2]
[328136012,1716928244011,-1651.0,0.00018257,2]
[328136013,1716928244020,-1304.0,0.00018257,2]
[328136014,1716928244029,-150.0,0.00018257,2]
[328136015,1716928244039,-216.0,0.00018257,2]
[328136016,1716928244048,-544.0,0.00018257,2]
[328136017,1716928244057,-3163.0,0.00018257,2]
[328136018,1716928244066,-975.0,0.00018257,2]
[328136019,1716928244075,-5140.0,0.00018257,2]
[328136020,1716928244085,-289.0,0.00018257,2]
[328136021,1716928244094,-357.0,0.00018257,2]
[328136022,1716928244103,-1467.0,0.00018257,2]
[328136023,1716928244112,-37944.0,0.00018257,2]
[328136024,1716928244121,-150.0,0.00018257,2]
[328136025,1716928244131,-1224.0,0.00018257,2]
[328136026,1716928244140,-300.0,0.00018888,2]
[328136027,1716928244149,-2100.0,0.00018888,2]
[328136028,1716928244158,-151.0,0.00019177,2]
[328136029,1716928244167,-500.0,0.00019178,2]
[328136030,1716928244178,-198.96193657,0.00019178,2]
[328136031,1716928244188,-157.01141676,0.00019178,2]
[328136032,1716928244197,-500.0,0.00019178,2]
[328136033,1716928244206,-621.35375035,0.00019178,2]
[328136034,1716928244215,-500.0,0.00019178,2]
[328136035,1716928244224,-1903.42,0.00019178,2]
[328136036,1716928244234,-5063.92,0.00019178,2]
[328136037,1716928244243,-1000.0,0.00019189,2]
[328136038,1716928244252,-3885.07287193,0.000192,2]
[328136039,1716928244261,-7208.6588796,0.00019233,2]
[328136040,1716928244270,-1351.38160469,0.00019233,2]
[328136041,1716928244279,-190.43,0.00019894,2]
[328136042,1716928244289,-6246.18937467,0.0002,2]
[328136043,1716928244298,-445.5768486,0.0002,2]
[328136044,1716928244308,-547.45858614,0.0002,2]
[328136045,1716928244318,-634.26621699,0.0002,2]
[328136046,1716928244327,-862.89388826,0.0002,2]
[328136047,1716928244337,-11821.33183945,0.0002,2]
[328136048,1716928244347,-155.0,0.0002,4]
[328136049,1716928244358,-226.30445507,0.000201,2]
[328136050,1716928244367,-170.97,0.00020548,2]
[328136051,1716928244377,-1643.82755045,0.00020614,2]
[328136052,1716928244388,-212.98738249,0.00021002,2]
[328136053,1716928244398,-165.94574547,0.00021004,2]
[328136054,1716928244407,-152.7044773,0.0002103,2]
[328136055,1716928244417,-165.94574547,0.00021236,2]
[328136056,1716928244427,-150.0,0.00021257,2]
[328136057,1716928244437,-444.0,0.00021257,2]
[328136058,1716928244447,-1697.518,0.00021257,2]
[328136059,1716928244457,-150.0,0.00021257,2]
[328136060,1716928244467,-808.0,0.00021257,2]
[328136061,1716928244476,-157.03,0.00021257,2]
[328136062,1716928244485,-1651.0,0.00021257,2]
[328136063,1716928244495,-1304.0,0.00021257,2]
[328136064,1716928244504,-216.0,0.00021257,2]
[328136065,1716928244514,-544.0,0.00021257,2]
[328136066,1716928244532,-975.0,0.00021257,2]